bitfinex/quotes_BTCUSD_20240605
["timestamp","ask_amount","ask_price","bid_price","bid_amount"]
[1717606499723,0.16603619,71386.0,71385.0,0.240085]
[1717606500367,0.16603619,71386.0,71385.0,0.24075741]
[1717606500828,0.16603619,71387.0,71386.0,0.14075541]
[1717606501059,0.16603619,71387.0,71386.0,0.24075541]
[1717606503910,0.16603619,71387.0,71386.0,0.240083]
[1717606504811,0.16603619,71387.0,71386.0,0.24075541]
[1717606505015,0.16603619,71387.0,71386.0,0.240083]
[1717606505220,0.16603619,71387.0,71386.0,0.215083]
[1717606505845,0.16603619,71387.0,71386.0,0.21575541]
[1717606506020,0.16603619,71387.0,71386.0,0.215083]
[1717606506447,0.31612119,71385.0,71384.0,0.000946]
[1717606506669,0.39725512,71385.0,71384.0,0.000946]
[1717606506892,0.42025512,71385.0,71384.0,0.000946]
[1717606507109,0.57845512,71385.0,71384.0,0.000946]
[1717606507525,0.71854012,71385.0,71384.0,0.000946]
[1717606507957,0.78634012,71385.0,71384.0,0.000946]
[1717606509541,1.06651012,71385.0,71384.0,0.000946]
[1717606509988,0.99871012,71385.0,71384.0,0.000946]
[1717606510215,1.50729485,71385.0,71384.0,0.000946]
[1717606510437,0.75884158,71382.0,71381.0,0.004946]
[1717606510657,1.34176051,71382.0,71381.0,0.004946]
[1717606510872,1.62194251,71382.0,71381.0,0.004946]
[1717606511171,1.34176051,71382.0,71381.0,0.004946]
[1717606512103,1.72194251,71382.0,71381.0,0.004946]
[1717606512318,1.44176051,71382.0,71381.0,0.004946]
[1717606514336,0.75887158,71377.0,71371.0,0.002]
[1717606514559,1.16959051,71377.0,71371.0,0.002]
[1717606515917,1.44979251,71377.0,71371.0,0.002]
[1717606516332,1.31872058,71372.0,71371.0,0.002]
[1717606516533,1.98336775,71372.0,71371.0,0.002]
[1717606517448,1.13915058,71369.0,71361.0,0.013504]
[1717606517658,1.54666951,71369.0,71361.0,0.013504]
[1717606517864,1.51939758,71368.0,71361.0,0.013504]
[1717606518068,2.01661651,71368.0,71361.0,0.013504]
[1717606518918,1.23921058,71363.0,71361.0,0.013504]
[1717606519124,1.80602951,71363.0,71361.0,0.013504]
[1717606519540,1.08876558,71361.0,71360.0,0.009493]
[1717606519754,1.25618451,71361.0,71360.0,0.009493]
[1717606520394,1.53644951,71361.0,71360.0,0.009493]
[1717606521842,0.95618451,71361.0,71360.0,0.009493]
[1717606522047,0.67591951,71361.0,71360.0,0.009493]
[1717606524243,0.95618451,71361.0,71360.0,0.009493]
[1717606524451,1.53644951,71361.0,71360.0,0.009493]
[1717606524671,1.53613621,71361.0,71360.0,0.009493]
[1717606525749,1.91640121,71361.0,71360.0,0.009493]
[1717606525967,1.95477671,71361.0,71360.0,0.009493]
[1717606527096,1.67451171,71361.0,71360.0,0.009493]
[1717606527302,1.63613621,71361.0,71360.0,0.009493]
[1717606527745,1.68886944,71361.0,71360.0,0.009493]
[1717606527964,1.72724494,71361.0,71360.0,0.009493]
[1717606528397,1.74442239,71361.0,71360.0,0.009493]
[1717606528826,1.70604689,71361.0,71360.0,0.009493]
[1717606529157,1.65331366,71361.0,71360.0,0.009493]
[1717606529360,1.69168916,71361.0,71360.0,0.009493]
[1717606530348,1.65331366,71361.0,71360.0,0.009493]
[1717606531224,1.75331366,71361.0,71360.0,0.009493]
[1717606531684,2.22357866,71361.0,71360.0,0.009493]
[1717606531887,2.26195416,71361.0,71360.0,0.009493]
[1717606532110,1.61982728,71360.0,71359.0,0.009493]
[1717606532341,1.61982728,71360.0,71341.0,0.004]
[1717606532342,0.00280597,71352.0,71341.0,0.004]
[1717606532601,0.00280597,71352.0,71336.0,0.009504]
[1717606532602,0.57843428,71337.0,71336.0,0.009504]
[1717606532818,1.56184671,71337.0,71336.0,0.009504]
[1717606533059,1.58484671,71337.0,71336.0,0.009504]
[1717606533287,1.54647121,71337.0,71336.0,0.009504]
[1717606533512,1.26611221,71337.0,71336.0,0.009504]
[1717606533728,1.30448771,71337.0,71336.0,0.009504]
[1717606534384,1.58484671,71337.0,71336.0,0.009504]
[1717606534611,1.58484671,71337.0,71312.0,0.164904]
[1717606534612,1.23920228,71332.0,71312.0,0.009504]
[1717606534878,0.67845428,71327.0,71312.0,0.009504]
[1717606535068,1.07427321,71327.0,71312.0,0.009504]
[1717606535287,0.97427321,71327.0,71312.0,0.009504]
[1717606535585,0.77427321,71327.0,71312.0,0.009504]
[1717606535817,1.35467121,71327.0,71312.0,0.009504]
[1717606536047,1.25467121,71327.0,71312.0,0.009504]
[1717606536279,1.35467121,71327.0,71312.0,0.009504]
[1717606536524,1.59978908,71327.0,71312.0,0.009504]
[1717606536798,1.88018708,71327.0,71312.0,0.009504]
[1717606537061,0.27848128,71313.0,71312.0,0.009504]
[1717606537312,0.44590021,71313.0,71312.0,0.009504]
[1717606538372,0.60200021,71313.0,71312.0,0.009504]
[1717606539234,0.88530021,71313.0,71312.0,0.009504]
[1717606539446,1.16575321,71313.0,71312.0,0.009504]
[1717606540084,1.26575321,71313.0,71312.0,0.009504]
[1717606540499,1.54620621,71313.0,71312.0,0.009504]
[1717606540709,1.26575321,71313.0,71312.0,0.009504]
[1717606542312,1.06575321,71313.0,71312.0,0.009504]
[1717606542527,1.23635321,71313.0,71312.0,0.009504]
[1717606542728,0.42109424,71313.0,71312.0,0.009504]
[1717606542928,0.42109424,71313.0,71312.0,0.087104]
[1717606543355,0.42209424,71313.0,71312.0,0.087104]
[1717606543554,0.42490021,71313.0,71312.0,0.009504]
[1717606543724,0.42390021,71313.0,71312.0,0.009504]
[1717606543935,0.80435321,71313.0,71312.0,0.009504]
[1717606544139,1.21675321,71313.0,71312.0,0.009504]
[1717606544339,0.83630021,71313.0,71312.0,0.009504]
[1717606544549,0.59218624,71313.0,71312.0,0.009504]
[1717606544772,0.27955427,71313.0,71312.0,0.011504]
[1717606544982,0.27955427,71313.0,71312.0,0.245104]
[1717606545380,0.27955427,71313.0,71312.0,0.243104]
[1717606545585,0.27955427,71313.0,71312.0,0.25097044]
[1717606545794,0.27955427,71313.0,71312.0,0.39319844]
[1717606546226,0.13513534,71313.0,71312.0,0.39319844]
[1717606546408,0.3,71338.0,71312.0,0.39319844]
[1717606546409,0.13513534,71315.0,71314.0,0.00786644]
[1717606546620,0.13513534,71315.0,71314.0,0.08054537]
[1717606546817,0.13513534,71316.0,71314.0,0.22076837]
[1717606547026,0.13513534,71316.0,71315.0,0.07267893]
[1717606547235,0.1472249,71331.0,71314.0,0.00786644]
[1717606547236,0.14441893,71331.0,71314.0,0.00786644]
[1717606547437,0.13513534,71313.0,71312.0,0.243104]
[1717606547641,0.13513534,71313.0,71312.0,0.31578134]
[1717606548082,0.13513534,71313.0,71312.0,0.32464778]
[1717606548690,0.13513534,71326.0,71321.0,0.00786644]
[1717606548893,0.27955427,71325.0,71324.0,0.157]
[1717606549291,0.27955427,71325.0,71324.0,0.37773924]
[1717606549517,0.14441893,71325.0,71324.0,0.37773924]
[1717606549721,0.13513534,71330.0,71327.0,0.140198]
[1717606549971,0.13513534,71330.0,71329.0,0.14806144]
[1717606550177,0.13513534,71330.0,71329.0,0.22556144]
[1717606550678,0.13513534,71335.0,71334.0,0.00786644]
[1717606550886,0.27955427,71335.0,71334.0,0.00786644]
[1717606551203,0.27955427,71335.0,71334.0,0.14805144]
[1717606551204,0.14441893,71335.0,71334.0,0.14805144]
[1717606551680,0.4715,71351.0,71340.0,0.24136644]
[1717606551681,0.13513534,71341.0,71340.0,0.24136644]
[1717606551922,0.27955427,71341.0,71340.0,0.2335]
[1717606552928,0.27955427,71341.0,71340.0,0.2345]
[1717606553351,0.27955427,71341.0,71340.0,0.24236644]
[1717606553566,0.14441893,71341.0,71340.0,0.38153944]
[1717606554033,0.13513534,71350.0,71348.0,0.00719403]
[1717606554245,0.13513534,71350.0,71348.0,0.00786644]
[1717606554689,0.13482204,71350.0,71349.0,0.00786644]
[1717606555355,0.13482204,71349.0,71348.0,0.00786644]
[1717606555578,0.27924097,71349.0,71348.0,0.00786644]
[1717606556054,0.13482204,71347.0,71346.0,0.14802744]
[1717606556296,0.13482204,71342.0,71340.0,0.1577]
[1717606556557,0.13482204,71341.0,71340.0,0.1577]
[1717606556774,0.13482204,71341.0,71340.0,0.2349]
[1717606556985,0.27924097,71341.0,71340.0,0.2339]
[1717606558152,0.27924097,71341.0,71340.0,0.374073]
[1717606558650,0.27924097,71341.0,71340.0,0.38193944]
[1717606559091,0.27924097,71341.0,71340.0,0.374073]
[1717606559307,0.27924097,71341.0,71340.0,0.375073]
[1717606559749,0.27924097,71341.0,71340.0,0.2349]
[1717606559933,0.27924097,71341.0,71340.0,0.2339]
[1717606560350,0.27924097,71341.0,71340.0,0.2349]
[1717606560565,0.27924097,71341.0,71340.0,0.24276644]
[1717606561216,0.13482204,71341.0,71340.0,0.38293944]
[1717606561435,0.000946,71341.0,71340.0,0.38293944]
[1717606562145,0.000946,71341.0,71340.0,0.38193944]
[1717606562576,0.000946,71341.0,71340.0,0.77328644]
[1717606562793,0.000946,71341.0,71340.0,0.76328644]
[1717606563011,0.000946,71341.0,71340.0,0.77228644]
[1717606563491,0.000946,71341.0,71340.0,0.77328644]
[1717606563715,0.000946,71341.0,71340.0,1.05363344]
[1717606564145,0.000946,71341.0,71340.0,1.05263344]
[1717606564995,0.000946,71341.0,71340.0,1.1178114]
[1717606565208,0.000946,71341.0,71340.0,1.05263344]
[1717606565825,0.000946,71341.0,71340.0,1.05363344]
[1717606566026,0.000946,71341.0,71340.0,1.04363344]
[1717606566446,0.000946,71341.0,71340.0,0.76328644]
[1717606568003,0.000946,71341.0,71340.0,1.22323344]
[1717606569492,0.000946,71341.0,71340.0,0.94288644]
[1717606572112,0.000946,71341.0,71340.0,1.22323344]
[1717606572524,0.000946,71341.0,71340.0,1.81317733]
[1717606572733,0.000946,71341.0,71340.0,1.91317733]
[1717606572954,0.13482204,71364.0,71358.0,0.14800444]
[1717606573163,0.43336945,71374.0,71358.0,0.38100444]
[1717606573164,0.13882204,71359.0,71358.0,0.38100444]
[1717606573377,0.13882204,71359.0,71358.0,0.14800444]
[1717606573600,0.13882204,71359.0,71358.0,0.140138]
[1717606574627,0.13850874,71359.0,71358.0,0.140138]
[1717606575533,0.13482204,71357.0,71356.0,0.140141]
[1717606577009,0.13482204,71357.0,71356.0,0.14800744]
[1717606578091,0.13482204,71357.0,71356.0,0.14900744]
[1717606578509,0.0036867,71359.0,71358.0,0.14800444]
[1717606578756,0.0036867,71359.0,71358.0,0.22920444]
[1717606578967,0.13850874,71359.0,71358.0,0.22920444]
[1717606579412,0.13850874,71359.0,71358.0,0.14800444]
[1717606579618,0.13850874,71359.0,71358.0,0.140138]
[1717606580260,0.13482204,71356.0,71355.0,0.16232873]
[1717606580485,0.13482204,71356.0,71355.0,0.14800844]
[1717606580705,0.13482204,71354.0,71353.0,0.14801444]
[1717606583966,0.13482204,71354.0,71353.0,0.14901444]
[1717606585623,0.13482204,71354.0,71353.0,0.00886644]
[1717606585799,0.13482204,71354.0,71353.0,0.001]
[1717606585997,0.13482204,71354.0,71353.0,0.00886644]
[1717606586233,0.13482204,71355.0,71354.0,0.00786644]
[1717606587474,0.13482204,71357.0,71356.0,0.14800844]
[1717606587658,0.0036867,71359.0,71358.0,0.14800444]
[1717606587874,0.13850874,71359.0,71358.0,0.14800444]
[1717606588758,0.0036867,71359.0,71358.0,0.14800444]
[1717606589845,0.0036867,71359.0,71358.0,0.40050444]
[1717606590066,0.0036867,71359.0,71358.0,0.68078044]
[1717606590958,0.0036867,71359.0,71358.0,0.68178044]
[1717606591403,0.0036867,71359.0,71358.0,0.69178044]
[1717606591632,0.0036867,71359.0,71358.0,0.79178044]
[1717606591847,0.0036867,71359.0,71358.0,0.79078044]
[1717606592346,0.0036867,71359.0,71358.0,0.79178044]
[1717606592592,9.0036867,71359.0,71358.0,1.07205644]
[1717606592857,9.0036867,71359.0,71358.0,1.06205644]
[1717606594455,9.0036867,71359.0,71358.0,1.07205644]
[1717606594675,9.00337297,71359.0,71358.0,1.07205644]
[1717606595104,9.00337297,71359.0,71358.0,1.61392951]
[1717606595320,9.00337297,71359.0,71358.0,1.76942951]
[1717606595925,9.00431897,71359.0,71358.0,1.76942951]
[1717606596196,9.00431897,71359.0,71358.0,1.83460747]
[1717606596428,9.00431897,71359.0,71358.0,1.76942951]
[1717606596643,9.00431897,71359.0,71358.0,1.83460747]
[1717606597148,9.00431897,71359.0,71358.0,1.76942951]
[1717606598003,9.00431897,71359.0,71358.0,1.83460747]
[1717606599546,9.00431897,71359.0,71358.0,1.76942951]
[1717606600668,9.00431897,71359.0,71358.0,0.71605858]
[1717606600877,9.00431897,71359.0,71358.0,0.99633458]
[1717606601087,9.00431897,71359.0,71358.0,1.22523458]
[1717606601929,9.00431897,71359.0,71358.0,1.23523458]
[1717606602340,9.00431897,71359.0,71358.0,1.22523458]
[1717606603319,9.13914101,71359.0,71358.0,0.101]
[1717606603545,9.51685994,71359.0,71358.0,0.001]
[1717606605643,9.51685994,71359.0,71353.0,0.00872644]
[1717606605853,0.13482204,71354.0,71353.0,0.00872644]
[1717606606055,0.13482204,71354.0,71353.0,0.00086]
[1717606606685,0.29632204,71354.0,71353.0,0.00086]
[1717606607114,0.29632204,71354.0,71353.0,0.00186]
[1717606607761,0.44074097,71354.0,71353.0,0.00186]
[1717606607988,0.66669294,71354.0,71353.0,0.00186]
[1717606609050,0.66388697,71354.0,71353.0,0.00186]
[1717606609477,0.66388697,71354.0,71353.0,0.00086]
[1717606609662,0.66669294,71354.0,71353.0,0.00186]
[1717606611148,0.94698494,71354.0,71353.0,0.00186]
[1717606612359,0.66669294,71354.0,71353.0,0.00186]
[1717606613815,0.66388697,71354.0,71353.0,0.00186]
[1717606614226,0.66669294,71354.0,71353.0,0.00186]
[1717606614641,0.666379,71354.0,71353.0,0.00186]
[1717606615666,0.66357303,71354.0,71353.0,0.00186]
[1717606616696,0.52342703,71354.0,71353.0,0.00972644]
[1717606616906,0.30591893,71354.0,71353.0,0.00972644]
[1717606617118,0.14441893,71354.0,71353.0,0.00972644]
[1717606617523,0.1345081,71355.0,71354.0,0.00786644]
[1717606617731,9.00431897,71359.0,71358.0,0.00786644]
[1717606620636,9.00431897,71359.0,71358.0,0.14800444]
[1717606621441,9.00431897,71359.0,71358.0,0.14900444]
[1717606621643,9.00431897,71359.0,71358.0,0.23210444]
[1717606622310,9.00431897,71359.0,71358.0,0.68501399]
[1717606622526,9.00431897,71359.0,71358.0,0.83931399]
[1717606623392,9.00431897,71359.0,71358.0,0.84931399]
[1717606623816,9.00431897,71359.0,71358.0,0.84831399]
[1717606624029,9.00431897,71359.0,71358.0,0.55903799]
[1717606624690,9.00431897,71359.0,71358.0,0.32163799]
[1717606624915,9.13882707,71359.0,71358.0,0.32163799]
[1717606625856,9.13882707,71359.0,71358.0,0.24900444]
[1717606627101,9.423382,71359.0,71358.0,0.001]
[1717606627309,9.574182,71359.0,71358.0,0.001]
[1717606627527,9.65468797,71359.0,71358.0,0.001]
[1717606628362,0.1345081,71354.0,71353.0,0.00086]
[1717606628576,0.41907303,71354.0,71353.0,0.00086]
[1717606628784,0.650379,71354.0,71353.0,0.00086]
[1717606631104,0.650379,71354.0,71353.0,0.00186]
[1717606631921,0.930671,71354.0,71353.0,0.00186]
[1717606632145,1.130671,71354.0,71353.0,0.00186]
[1717606632358,0.1345081,71340.0,71334.0,0.0167706]
[1717606632569,0.1345081,71325.0,71324.0,0.00786644]
[1717606633191,0.2747191,71321.0,71320.0,0.00786644]
[1717606633400,0.1345081,71320.0,71319.0,0.01432029]
[1717606634433,0.1345081,71320.0,71319.0,0.02218673]
[1717606635539,0.1345081,71320.0,71319.0,0.02318673]
[1717606637882,0.1345081,71320.0,71319.0,0.00886644]
[1717606638289,0.1345081,71319.0,71315.0,0.00786644]
[1717606638493,0.1345081,71314.0,71313.0,0.10086]
[1717606638715,0.1345081,71314.0,71313.0,0.00872644]
[1717606640998,0.1345081,71322.0,71319.0,0.00786644]
[1717606641219,0.1345081,71322.0,71321.0,0.00786644]
[1717606641409,0.1345081,71322.0,71313.0,0.00086]
[1717606641410,0.1345081,71319.0,71318.0,0.00786644]
[1717606642274,0.1345081,71319.0,71317.0,0.140218]
[1717606642275,0.1345081,71317.0,71315.0,0.00786644]
[1717606642480,0.1345081,71316.0,71315.0,0.00786644]
[1717606642910,0.1345081,71314.0,71313.0,0.00872644]
[1717606644191,0.27892703,71314.0,71313.0,0.00086]
[1717606644401,0.65705103,71314.0,71313.0,0.00086]
[1717606644846,0.65673695,71314.0,71313.0,0.00086]
[1717606645698,0.65673695,71314.0,71313.0,0.00186]
[1717606646129,0.27861295,71314.0,71313.0,0.00872644]
[1717606647204,0.27861295,71314.0,71313.0,0.00972644]
[1717606647634,0.27861295,71314.0,71313.0,0.00186]
[1717606648063,0.27861295,71314.0,71313.0,0.00972644]
[1717606648284,0.13419402,71317.0,71314.0,0.38259044]
[1717606648526,0.13419402,71317.0,71316.0,0.00786644]
[1717606651035,0.13419402,71317.0,71316.0,0.00886644]
[1717606652463,0.13419402,71317.0,71316.0,0.00786644]
[1717606653311,0.13419402,71319.0,71318.0,0.00786644]
[1717606653780,0.13419402,71320.0,71318.0,0.00786644]
[1717606653981,0.13419402,71321.0,71320.0,0.00786644]
[1717606654810,0.13388029,71321.0,71320.0,0.00786644]
[1717606655874,0.13388029,71322.0,71321.0,0.00786644]
[1717606660348,0.0801,71328.0,71327.0,0.00786644]
[1717606660586,0.27829922,71328.0,71327.0,0.00786644]
[1717606661653,0.14441893,71328.0,71327.0,0.00786644]
[1717606661872,0.1519,71332.0,71331.0,0.00786644]
[1717606662086,0.15890097,71351.0,71322.0,0.01]
[1717606662087,0.13388029,71334.0,71333.0,0.00786644]
[1717606662295,0.13388029,71337.0,71336.0,0.00786644]
[1717606662532,0.27829922,71337.0,71336.0,0.00786644]
[1717606665138,0.27829922,71337.0,71336.0,0.14804744]
[1717606667254,0.13388029,71335.0,71334.0,0.00786644]
[1717606667698,0.13388029,71335.0,71334.0,0.14805144]
[1717606667921,0.13388029,71335.0,71332.0,0.00786644]
[1717606667922,0.13388029,71333.0,71332.0,0.00786644]
[1717606668136,0.13388029,71332.0,71331.0,0.14805744]
[1717606670973,0.13388029,71332.0,71331.0,0.140191]
[1717606671148,0.13388029,71332.0,71331.0,0.14805744]
[1717606677114,0.13388029,71335.0,71334.0,0.00786644]
[1717606677991,0.13388029,71335.0,71334.0,0.14805144]
[1717606683026,0.13388029,71335.0,71328.0,0.280394]
[1717606683027,0.13388029,71343.0,71342.0,0.00786644]
[1717606683207,0.158,71354.0,71342.0,0.00786644]
[1717606683208,0.13388029,71344.0,71343.0,0.00786644]
[1717606684516,0.13388029,71344.0,71343.0,0.14803344]
[1717606684901,0.13388029,71345.0,71344.0,0.14803144]
[1717606685106,0.27829922,71345.0,71344.0,0.14803144]
[1717606686281,0.27829922,71345.0,71344.0,0.140165]
[1717606686685,0.13388029,71347.0,71346.0,0.14802844]
[1717606687134,0.13388029,71348.0,71347.0,0.14083241]
[1717606687338,0.13388029,71351.0,71350.0,0.00786644]
[1717606687541,0.27829922,71351.0,71350.0,0.00786644]
[1717606687742,0.14441893,71351.0,71350.0,0.14802044]
[1717606688140,0.27829922,71351.0,71350.0,0.14802044]
[1717606690466,0.27829922,71351.0,71350.0,0.140154]
[1717606691254,0.27829922,71351.0,71350.0,0.14802044]
[1717606691452,0.27829922,71351.0,71350.0,0.140154]
[1717606692634,0.27829922,71351.0,71350.0,0.14802044]
[1717606693314,0.27829922,71351.0,71350.0,0.140154]
[1717606694409,0.27829922,71351.0,71331.0,0.08306644]
[1717606694410,0.13388029,71340.0,71331.0,0.08306644]
[1717606694631,0.13388029,71333.0,71332.0,0.58142389]
[1717606694841,0.13388029,71333.0,71332.0,0.14805444]
[1717606698714,0.13388029,71335.0,71334.0,0.14805144]
[1717606698930,0.13388029,71337.0,71336.0,0.00786644]
[1717606700578,0.13388029,71337.0,71336.0,0.14804744]
[1717606700828,0.13388029,71339.0,71338.0,0.14804344]
[1717606701470,0.13482629,71347.0,71346.0,0.00786644]
[1717606701680,0.000946,71347.0,71346.0,0.14802844]
[1717606702329,0.000946,71347.0,71341.0,0.00786644]
[1717606702330,0.13482629,71347.0,71341.0,0.00786644]
[1717606702535,0.13388029,71341.0,71340.0,0.00786644]
[1717606703381,0.13388029,71341.0,71340.0,0.14803944]
[1717606704231,0.1631,71346.0,71342.0,0.00786644]
[1717606704232,0.13388029,71343.0,71342.0,0.00786644]
[1717606704444,0.13388029,71346.0,71345.0,0.00786644]
[1717606705666,0.13388029,71346.0,71345.0,0.14802944]
[1717606707178,0.000946,71347.0,71346.0,0.14802844]
[1717606709184,0.13482629,71347.0,71346.0,0.14802844]
[1717606709405,0.13482629,71347.0,71346.0,0.00786644]
[1717606710869,0.13482629,71347.0,71346.0,0.14802844]
[1717606715010,0.13482629,71347.0,71346.0,0.42835244]
[1717606715011,0.000946,71347.0,71346.0,0.42835244]
[1717606715213,0.000946,71347.0,71346.0,0.66395244]
[1717606715904,0.000946,71347.0,71346.0,0.76395244]
[1717606716111,0.000946,71347.0,71346.0,0.77395244]
[1717606716641,0.000946,71347.0,71346.0,0.76395244]
[1717606720588,0.000946,71347.0,71346.0,0.77395244]
[1717606721271,0.000946,71347.0,71346.0,1.05427644]
[1717606721903,0.000946,71347.0,71346.0,0.76395244]
[1717606722110,0.000946,71347.0,71346.0,0.77395244]
[1717606723461,0.000946,71347.0,71346.0,1.05427644]
[1717606723876,0.000946,71347.0,71346.0,1.0962184]
[1717606724061,0.000946,71347.0,71346.0,1.05427644]
[1717606724746,0.000946,71347.0,71346.0,1.12039615]
[1717606725179,0.000946,71347.0,71346.0,1.16233811]
[1717606725820,0.000946,71347.0,71346.0,1.12039615]
[1717606726041,0.000946,71347.0,71346.0,1.28999615]
[1717606726251,0.000946,71347.0,71346.0,1.33193811]
[1717606727753,0.000946,71347.0,71346.0,1.22387644]
[1717606728608,0.000946,71347.0,71346.0,1.28999615]
[1717606729905,0.000946,71347.0,71346.0,1.05427644]
[1717606730324,0.000946,71347.0,71346.0,0.52835244]
[1717606730536,0.000946,71347.0,71346.0,0.24802844]
[1717606730537,0.159446,71347.0,71346.0,0.24802844]
[1717606731383,0.13388029,71345.0,71344.0,0.00786644]
[1717606731825,0.13388029,71345.0,71339.0,0.00786644]
[1717606731826,0.36248029,71340.0,71339.0,0.00786644]
[1717606732093,0.36248029,71340.0,71338.0,0.01432029]
[1717606732094,0.13388029,71339.0,71338.0,0.01432029]
[1717606732520,0.13388029,71339.0,71338.0,0.02218673]
[1717606732731,0.37301893,71340.0,71339.0,0.00786644]
[1717606732955,0.50689922,71340.0,71339.0,0.00786644]
[1717606733176,0.1534,71340.0,71339.0,0.14804144]
[1717606733620,0.13482629,71347.0,71346.0,0.00786644]
[1717606734035,0.13388029,71345.0,71344.0,0.00786644]
[1717606734270,0.13388029,71345.0,71342.0,0.00786644]
[1717606734271,0.21378029,71345.0,71342.0,0.00786644]
[1717606734483,0.13388029,71343.0,71342.0,0.00786644]
[1717606736446,0.13388029,71341.0,71340.0,0.00786644]
[1717606736655,0.13388029,71341.0,71340.0,0.14803944]
[1717606736830,0.1588,71344.0,71338.0,0.01432029]
[1717606736831,0.29268029,71344.0,71343.0,0.00786644]
[1717606737103,0.1588,71344.0,71343.0,0.00786644]
[1717606737301,0.1599,71349.0,71346.0,0.14802844]
[1717606737531,0.29378029,71349.0,71346.0,0.14802844]
[1717606737762,0.1599,71349.0,71346.0,0.14802844]
[1717606738221,0.13388029,71348.0,71346.0,0.14802844]
[1717606739109,0.1599,71349.0,71346.0,0.14802844]
[1717606739110,0.13482629,71347.0,71346.0,0.14802844]
[1717606740256,0.000946,71347.0,71346.0,0.14802844]
[1717606741777,0.13482629,71347.0,71346.0,0.14802844]
[1717606742857,0.13388029,71343.0,71342.0,0.00786644]
[1717606743074,0.13388029,71343.0,71342.0,0.14803544]
[1717606744174,0.13388029,71343.0,71342.0,0.00786644]
[1717606744625,0.000946,71347.0,71340.0,0.140172]
[1717606744626,0.13388029,71341.0,71340.0,0.14803844]
[1717606744839,0.13388029,71339.0,71338.0,0.00786644]
[1717606745049,0.13388029,71338.0,71337.0,0.00786644]
[1717606745519,0.13388029,71338.0,71337.0,0.14804544]
[1717606745723,0.13388029,71338.0,71337.0,0.24804544]
[1717606745938,0.13388029,71341.0,71340.0,0.14803944]
[1717606748052,0.13388029,71344.0,71343.0,0.14803344]
[1717606749308,0.13388029,71344.0,71338.0,0.280352]
[1717606749309,0.000946,71347.0,71346.0,0.14802844]
[1717606752663,0.000946,71347.0,71346.0,0.42835244]
[1717606755465,0.21238029,71346.0,71341.0,0.04194015]
[1717606755673,0.21759317,71347.0,71325.0,0.0821]
[1717606755674,0.13388029,71333.0,71331.0,0.00786644]
[1717606755886,0.13388029,71333.0,71332.0,0.00786644]
[1717606756300,0.13388029,71335.0,71333.0,0.140187]
[1717606756508,0.13388029,71335.0,71330.0,0.48582029]
[1717606756509,0.13388029,71335.0,71334.0,0.14805144]
[1717606757567,0.13388029,71335.0,71334.0,0.140185]
[1717606757782,0.13388029,71335.0,71334.0,0.14805144]
[1717606757986,0.13388029,71335.0,71334.0,0.140185]
[1717606759644,0.13388029,71335.0,71334.0,0.14805144]
[1717606761425,0.13388029,71335.0,71334.0,0.140185]
[1717606761604,0.14441893,71339.0,71332.0,0.00786644]
[1717606761605,0.13388029,71333.0,71332.0,0.00786644]
[1717606761803,0.07222824,71338.0,71324.0,0.04194015]
[1717606761804,0.13388029,71329.0,71328.0,0.140197]
[1717606763563,0.13388029,71329.0,71328.0,0.14806344]
[1717606765142,0.13388029,71329.0,71328.0,0.140197]
[1717606767094,0.13388029,71329.0,71328.0,0.14806344]
[1717606767936,0.13388029,71329.0,71328.0,0.140197]
[1717606769045,0.13388029,71329.0,71328.0,0.00786644]
[1717606769459,0.13388029,71329.0,71328.0,0.14806344]
[1717606770078,0.20958029,71329.0,71328.0,0.14806344]
[1717606771393,0.13388029,71329.0,71328.0,0.14806344]
[1717606772056,0.28778029,71330.0,71329.0,0.00786644]
[1717606772241,0.13388029,71335.0,71334.0,0.00786644]
[1717606772442,0.27829922,71335.0,71334.0,0.00786644]
[1717606773840,0.13388029,71334.0,71333.0,0.00786644]
[1717606774636,0.13388029,71330.0,71329.0,0.140195]
[1717606775037,0.13388029,71330.0,71329.0,0.14806144]
[1717606775648,0.13388029,71330.0,71329.0,0.140195]
[1717606776102,0.13388029,71330.0,71329.0,0.14806144]
[1717606779693,0.13388029,71332.0,71331.0,0.00786644]
[1717606780815,0.13388029,71331.0,71330.0,0.00786644]
[1717606782666,0.13388029,71330.0,71329.0,0.14806144]
[1717606783522,0.37048029,71330.0,71329.0,0.140195]
[1717606783720,0.37048029,71330.0,71329.0,0.14806144]
[1717606783920,0.29128029,71330.0,71329.0,0.14806144]
[1717606784631,0.13388029,71330.0,71329.0,0.14806144]
[1717606787662,0.13388029,71322.0,71321.0,0.00086]
[1717606787871,0.52189922,71322.0,71321.0,0.00086]
[1717606789989,0.66210822,71322.0,71321.0,0.00086]
[1717606791570,0.66491419,71322.0,71321.0,0.00086]
[1717606791782,0.66210822,71322.0,71321.0,0.00086]
[1717606792380,0.66491419,71322.0,71321.0,0.00086]
[1717606792585,0.66210822,71322.0,71321.0,0.00086]
[1717606794251,0.66491419,71322.0,71321.0,0.00086]
[1717606794456,0.66210822,71322.0,71321.0,0.00086]
[1717606796154,0.52189922,71322.0,71321.0,0.00086]
[1717606797154,0.73281419,71322.0,71321.0,0.00086]
[1717606797330,0.73000822,71322.0,71321.0,0.00086]
[1717606798171,0.73281419,71322.0,71321.0,0.00086]
[1717606799589,1.01323219,71322.0,71321.0,0.00086]
[1717606800629,1.01042622,71322.0,71321.0,0.00086]
[1717606801059,1.01323219,71322.0,71321.0,0.00086]
[1717606801291,1.86415019,71322.0,71321.0,0.00086]
[1717606801498,1.89625019,71322.0,71321.0,0.00086]
[1717606801906,1.96415019,71322.0,71321.0,0.00086]
[1717606802743,1.69625019,71322.0,71321.0,0.00086]
[1717606802954,1.59625019,71322.0,71321.0,0.00086]
[1717606803161,1.66415019,71322.0,71321.0,0.00086]
[1717606803370,0.66210822,71322.0,71321.0,0.00086]
[1717606803587,0.58280822,71322.0,71321.0,0.00086]
[1717606803831,0.27829922,71322.0,71321.0,0.00872644]
[1717606804051,0.41850822,71322.0,71321.0,0.00872644]
[1717606804270,0.27829922,71322.0,71321.0,0.00086]
[1717606805579,0.65270822,71322.0,71321.0,0.00086]
[1717606805787,0.93593219,71322.0,71321.0,0.00086]
[1717606806007,1.21635019,71322.0,71321.0,0.00086]
[1717606806497,1.43935019,71322.0,71321.0,0.00086]
[1717606807144,1.58685019,71322.0,71321.0,0.00086]
[1717606807356,1.38685019,71322.0,71321.0,0.00086]
[1717606808003,1.58685019,71322.0,71321.0,0.00086]
[1717606808652,1.58685019,71322.0,71313.0,0.00086]
[1717606808653,0.70485926,71314.0,71313.0,0.00086]
[1717606808868,1.27627819,71314.0,71313.0,0.00086]
[1717606809831,1.47627819,71314.0,71313.0,0.00086]
[1717606810236,1.27627819,71314.0,71313.0,0.00086]